[Event "Live Chess"]
[Site "Chess.com"]
[Date "2023.05.21"]
[Round "-"]
[White "Fazer180"]
[Black "Biranidun"]
[Result "0-1"]
[WhiteElo "1744"]
[BlackElo "2541"]
[TimeControl "300"]
[EndTime "19:25:31 PDT"]
[Termination "Biranidun won by resignation"]

1. e4 {[%clk 0:04:56.6]} 1... c5 {[%clk 0:04:59]} 2. Nf3 {[%clk 0:04:55.2]} 2...
d6 {[%clk 0:04:58.4]} 3. d4 {[%clk 0:04:54.4]} 3... cxd4 {[%clk 0:04:58.3]} 4.
Nxd4 {[%clk 0:04:52.9]} 4... Nf6 {[%clk 0:04:57.4]} 5. Nc3 {[%clk 0:04:51.3]}
5... g6 {[%clk 0:04:57.1]} 6. Be3 {[%clk 0:04:47.8]} 6... Bg7 {[%clk 0:04:56.7]}
7. f3 {[%clk 0:04:46.3]} 7... O-O {[%clk 0:04:56.3]} 8. Bc4 {[%clk 0:04:45.1]}
8... Nc6 {[%clk 0:04:55.7]} 9. O-O {[%clk 0:04:44.1]} 9... Bd7 {[%clk 0:04:55]}
10. Qd2 {[%clk 0:04:40.8]} 10... Rc8 {[%clk 0:04:54.3]} 11. Bb3 {[%clk
0:04:37.7]} 11... Ne5 {[%clk 0:04:53.6]} 12. Nce2 {[%clk 0:04:25.9]} 12... Nc4
{[%clk 0:04:52.2]} 13. Bxc4 {[%clk 0:04:24.8]} 13... Rxc4 {[%clk 0:04:52.1]} 14.
c3 {[%clk 0:04:24.2]} 14... Qa5 {[%clk 0:04:48.3]} 15. Nb3 {[%clk 0:04:17.5]}
15... Qa6 {[%clk 0:04:45.7]} 16. Nf4 {[%clk 0:04:10.5]} 16... Rfc8 {[%clk
0:04:43.8]} 17. Nd5 {[%clk 0:04:04.9]} 17... Nxd5 {[%clk 0:04:42.9]} 18. Qxd5
{[%clk 0:04:03.2]} 18... b5 {[%clk 0:04:37.4]} 19. Rfd1 {[%clk 0:03:51.7]} 19...
Ra4 {[%clk 0:04:35.8]} 20. Nd4 {[%clk 0:03:34.5]} 20... Bf6 {[%clk 0:04:18.2]}
21. Qb3 {[%clk 0:03:09.4]} 21... Kg7 {[%clk 0:04:14.5]} 22. a3 {[%clk
0:03:01.9]} 22... Rac4 {[%clk 0:04:12.1]} 23. Qc2 {[%clk 0:02:50.2]} 23... Qb7
{[%clk 0:04:09.3]} 24. Qf2 {[%clk 0:02:46.1]} 24... a5 {[%clk 0:04:08.3]} 25.
Rac1 {[%clk 0:02:36.6]} 25... b4 {[%clk 0:04:07.5]} 26. axb4 {[%clk 0:02:35.2]}
26... axb4 {[%clk 0:04:06.8]} 27. cxb4 {[%clk 0:02:20.7]} 27... Qxb4 {[%clk
0:04:05.5]} 28. b3 {[%clk 0:02:05.8]} 28... Rxc1 {[%clk 0:04:04]} 29. Rxc1
{[%clk 0:02:04.7]} 29... Rxc1+ {[%clk 0:04:03]} 30. Bxc1 {[%clk 0:01:50]} 30...
Bxd4 {[%clk 0:04:01.8]} 31. Be3 {[%clk 0:01:49.9]} 31... Bxe3 {[%clk 0:03:59.7]}
32. Qxe3 {[%clk 0:01:49.8]} 32... Be6 {[%clk 0:03:58.2]} 0-1

[Event "Live Chess"]
[Site "Chess.com"]
[Date "2023.05.21"]
[Round "-"]
[White "Singapourfeuj"]
[Black "worldchessleaguelive"]
[Result "1-0"]
[WhiteElo "2143"]
[BlackElo "1355"]
[TimeControl "300"]
[EndTime "19:25:55 PDT"]
[Termination "Singapourfeuj won by resignation"]

1. d4 {[%clk 0:04:58.7]} 1... d5 {[%clk 0:04:56.6]} 2. e4 {[%clk 0:04:57.1]}
2... dxe4 {[%clk 0:04:55.1]} 3. f3 {[%clk 0:04:55.9]} 3... exf3 {[%clk
0:04:53.4]} 4. Nxf3 {[%clk 0:04:54.1]} 4... Nf6 {[%clk 0:04:45.8]} 5. Bc4 {[%clk
0:04:52.8]} 5... e6 {[%clk 0:04:40.8]} 6. O-O {[%clk 0:04:51.7]} 6... Be7 {[%clk
0:04:38.1]} 7. Nc3 {[%clk 0:04:49.3]} 7... O-O {[%clk 0:04:36.1]} 8. Bg5 {[%clk
0:04:48.2]} 8... h6 {[%clk 0:04:34.4]} 9. Bh4 {[%clk 0:04:46.3]} 9... a6 {[%clk
0:04:31.6]} 10. Qe1 {[%clk 0:04:45.1]} 10... b5 {[%clk 0:04:27.7]} 11. Bd3
{[%clk 0:04:44]} 11... Bb7 {[%clk 0:04:25.8]} 12. Kh1 {[%clk 0:04:43.1]} 12...
Nbd7 {[%clk 0:04:22.7]} 13. Rd1 {[%clk 0:04:40.9]} 13... c5 {[%clk 0:04:21.4]}
14. dxc5 {[%clk 0:04:39.1]} 14... Bxc5 {[%clk 0:04:17]} 15. Ne4 {[%clk
0:04:30.9]} 15... Bxe4 {[%clk 0:04:05.7]} 16. Bxe4 {[%clk 0:04:29.3]} 16... Ra7
{[%clk 0:04:03]} 17. Ne5 {[%clk 0:04:25.8]} 17... Qc8 {[%clk 0:03:50.3]} 18.
Nxd7 {[%clk 0:04:03.5]} 18... Rxd7 {[%clk 0:03:45.4]} 19. Bxf6 {[%clk
0:04:01.2]} 19... Rxd1 {[%clk 0:03:38.9]} 20. Qxd1 {[%clk 0:04:00.2]} 20... gxf6
{[%clk 0:03:35.2]} 21. Rxf6 {[%clk 0:03:58.2]} 21... Kg7 {[%clk 0:03:09.1]} 22.
Rf1 {[%clk 0:03:36.2]} 22... f5 {[%clk 0:03:04.2]} 23. Bd3 {[%clk 0:03:31.9]}
23... Rd8 {[%clk 0:02:46.8]} 24. Qe2 {[%clk 0:03:29]} 24... Kf6 {[%clk
0:02:16.8]} 25. Qh5 {[%clk 0:03:24]} 25... Rh8 {[%clk 0:02:09.6]} 26. b4 {[%clk
0:03:19.3]} 26... Be3 {[%clk 0:02:05.7]} 27. Qf3 {[%clk 0:03:06.9]} 27... Bd4
{[%clk 0:01:46.7]} 28. g4 {[%clk 0:03:03.5]} 28... Qa8 {[%clk 0:01:24.9]} 29.
Qxa8 {[%clk 0:03:00.8]} 29... Rxa8 {[%clk 0:01:23.2]} 30. gxf5 {[%clk
0:03:00.1]} 30... e5 {[%clk 0:01:20.8]} 31. a3 {[%clk 0:02:52.8]} 31... Re8
{[%clk 0:01:18.8]} 32. Be4 {[%clk 0:02:51.6]} 32... Bb2 {[%clk 0:01:13.6]} 33.
Bb7 {[%clk 0:02:48.9]} 33... Bxa3 {[%clk 0:00:57.9]} 34. Bxa6 {[%clk 0:02:47.7]}
34... Bxb4 {[%clk 0:00:56.8]} 35. Bxb5 {[%clk 0:02:46.9]} 35... Rc8 {[%clk
0:00:53.2]} 36. Bd3 {[%clk 0:02:45.5]} 36... Re8 {[%clk 0:00:47.2]} 37. Be4
{[%clk 0:02:44.3]} 37... Rc8 {[%clk 0:00:40.6]} 38. Rg1 {[%clk 0:02:42.7]} 38...
Rc4 {[%clk 0:00:24.8]} 39. Rg6+ {[%clk 0:02:40.5]} 39... Kf7 {[%clk 0:00:24]}
40. Bd5+ {[%clk 0:02:38.6]} 1-0

[Event "Live Chess"]
[Site "Chess.com"]
[Date "2023.05.21"]
[Round "-"]
[White "grillage"]
[Black "Hussamalhaidar"]
[Result "1-0"]
[WhiteElo "1808"]
[BlackElo "1094"]
[TimeControl "300"]
[EndTime "19:26:55 PDT"]
[Termination "grillage won on time"]

1. d4 {[%clk 0:04:59.1]} 1... e5 {[%clk 0:04:56.4]} 2. dxe5 {[%clk 0:04:57.7]}
2... d6 {[%clk 0:04:54.6]} 3. e4 {[%clk 0:04:52.8]} 3... Nc6 {[%clk 0:04:51]} 4.
Bb5 {[%clk 0:04:48.6]} 4... Bd7 {[%clk 0:04:47.9]} 5. Nf3 {[%clk 0:04:45.5]}
5... Nxe5 {[%clk 0:04:42.7]} 6. Bxd7+ {[%clk 0:04:42.8]} 6... Nxd7 {[%clk
0:04:38.4]} 7. O-O {[%clk 0:04:40.6]} 7... Ngf6 {[%clk 0:04:34.5]} 8. Nc3 {[%clk
0:04:38.6]} 8... Be7 {[%clk 0:04:26.8]} 9. Qe2 {[%clk 0:04:32.2]} 9... O-O
{[%clk 0:04:19.2]} 10. Rd1 {[%clk 0:04:30]} 10... Nc5 {[%clk 0:04:16.4]} 11. e5
{[%clk 0:04:21.1]} 11... Nfd7 {[%clk 0:03:57.9]} 12. exd6 {[%clk 0:04:17.7]}
12... Bxd6 {[%clk 0:03:53.7]} 13. Bg5 {[%clk 0:04:06.5]} 13... Nf6 {[%clk
0:03:39.4]} 14. Nd5 {[%clk 0:03:58.2]} 14... Re8 {[%clk 0:03:18.1]} 15. Qc4
{[%clk 0:03:41.4]} 15... Ne6 {[%clk 0:02:49.4]} 16. Nxf6+ {[%clk 0:03:25.8]}
16... gxf6 {[%clk 0:02:38.4]} 17. Bh6 {[%clk 0:03:22.6]} 17... a6 {[%clk
0:02:11]} 18. Nd4 {[%clk 0:03:11.7]} 18... Nxd4 {[%clk 0:02:03.4]} 19. Rxd4
{[%clk 0:03:03.2]} 19... b5 {[%clk 0:01:52.2]} 20. Qd3 {[%clk 0:02:47.4]} 20...
Kh8 {[%clk 0:01:07.3]} 21. Rh4 {[%clk 0:02:27.1]} 21... c5 {[%clk 0:00:53.2]}
22. Be3 {[%clk 0:02:10.5]} 22... f5 {[%clk 0:00:40.9]} 23. Qxf5 {[%clk
0:02:07.8]} 23... Qxh4 {[%clk 0:00:37.4]} 24. g3 {[%clk 0:01:51.6]} 24... Rg8
{[%clk 0:00:17.5]} 25. Rd1 {[%clk 0:01:42.9]} 25... Rad8 {[%clk 0:00:14.9]} 26.
Re1 {[%clk 0:01:27.5]} 26... Bxg3 {[%clk 0:00:12.9]} 27. fxg3 {[%clk 0:01:16.8]}
27... Rxg3+ {[%clk 0:00:11.5]} 28. hxg3 {[%clk 0:01:14.3]} 28... Qxg3+ {[%clk
0:00:09.4]} 29. Kf1 {[%clk 0:01:10.1]} 29... Qh3+ {[%clk 0:00:05.9]} 30. Qxh3
{[%clk 0:01:08.6]} 1-0

[Event "Live Chess"]
[Site "Chess.com"]
[Date "2023.05.21"]
[Round "-"]
[White "ViktorTheCoolBoy"]
[Black "LutherSullivan"]
[Result "0-1"]
[WhiteElo "2495"]
[BlackElo "2134"]
[TimeControl "300"]
[EndTime "19:27:12 PDT"]
[Termination "LutherSullivan won by resignation"]

1. d4 {[%clk 0:04:58.6]} 1... d5 {[%clk 0:04:56.6]} 2. c4 {[%clk 0:04:57.7]}
2... e6 {[%clk 0:04:56.2]} 3. Nc3 {[%clk 0:04:56.5]} 3... Nf6 {[%clk 0:04:55.4]}
4. Nf3 {[%clk 0:04:55.9]} 4... Be7 {[%clk 0:04:52.6]} 5. Bf4 {[%clk 0:04:54.4]}
5... O-O {[%clk 0:04:50.2]} 6. e3 {[%clk 0:04:53.7]} 6... a6 {[%clk 0:04:47.2]}
7. Rc1 {[%clk 0:04:50.6]} 7... Nbd7 {[%clk 0:04:42.8]} 8. a3 {[%clk 0:04:45.8]}
8... dxc4 {[%clk 0:04:13.3]} 9. Bxc4 {[%clk 0:04:43.8]} 9... b5 {[%clk
0:04:12.9]} 10. Bd3 {[%clk 0:04:42.8]} 10... Bb7 {[%clk 0:04:11.4]} 11. O-O
{[%clk 0:04:39.5]} 11... c5 {[%clk 0:04:10.3]} 12. dxc5 {[%clk 0:04:36.9]} 12...
Nxc5 {[%clk 0:04:07.9]} 13. Bc2 {[%clk 0:04:35.5]} 13... Qb6 {[%clk 0:03:50.6]}
14. Qe2 {[%clk 0:04:31.8]} 14... Rac8 {[%clk 0:03:27.2]} 15. Ne5 {[%clk
0:04:29.5]} 15... Rfd8 {[%clk 0:03:21]} 16. Rfd1 {[%clk 0:04:27.5]} 16... b4
{[%clk 0:02:58.7]} 17. axb4 {[%clk 0:04:16.7]} 17... Qxb4 {[%clk 0:02:55.6]} 18.
Na2 {[%clk 0:04:08.6]} 18... Qb5 {[%clk 0:02:50]} 19. Qxb5 {[%clk 0:04:06.2]}
19... axb5 {[%clk 0:02:49.5]} 20. b4 {[%clk 0:04:03.9]} 20... Nce4 {[%clk
0:02:39.3]} 21. Bxe4 {[%clk 0:03:58.6]} 21... Nxe4 {[%clk 0:02:31.8]} 22. Rxd8+
{[%clk 0:03:52.8]} 22... Bxd8 {[%clk 0:02:19.8]} 23. Rxc8 {[%clk 0:03:50.4]}
23... Bxc8 {[%clk 0:02:19.4]} 24. f3 {[%clk 0:03:48.9]} 24... Nd2 {[%clk
0:02:04.7]} 25. e4 {[%clk 0:03:43.1]} 25... Bb6+ {[%clk 0:02:02.1]} 26. Kh1
{[%clk 0:03:40.3]} 26... Nb1 {[%clk 0:01:52.2]} 27. g4 {[%clk 0:03:26.1]} 27...
f6 {[%clk 0:01:50.5]} 28. Nc6 {[%clk 0:03:24.2]} 28... Kf7 {[%clk 0:01:47.3]}
29. Kg2 {[%clk 0:03:19]} 29... e5 {[%clk 0:01:45.8]} 30. Bc1 {[%clk 0:03:15.1]}
30... Be6 {[%clk 0:01:45.1]} 31. Kf1 {[%clk 0:03:06.1]} 31... Bxa2 {[%clk
0:01:44.1]} 32. Ke1 {[%clk 0:03:05.4]} 32... Nc3 {[%clk 0:01:39.2]} 33. Kd2
{[%clk 0:03:03.3]} 33... Na4 {[%clk 0:01:37.8]} 34. Na5 {[%clk 0:03:00.7]} 34...
Bd4 {[%clk 0:01:30.8]} 35. Nc6 {[%clk 0:02:55.1]} 35... Bc3+ {[%clk 0:01:25.7]}
36. Kc2 {[%clk 0:02:54.2]} 36... Bc4 {[%clk 0:01:21.9]} 37. Bd2 {[%clk
0:02:52.3]} 37... Bxd2 {[%clk 0:01:11]} 38. Kxd2 {[%clk 0:02:52.2]} 38... Ke6
{[%clk 0:01:07.6]} 39. Na5 {[%clk 0:02:46.9]} 39... Kd6 {[%clk 0:01:03.5]} 40.
Nb7+ {[%clk 0:02:45.5]} 40... Kc7 {[%clk 0:01:01.8]} 41. Na5 {[%clk 0:02:45]}
41... Nb6 {[%clk 0:00:56.7]} 42. Kc3 {[%clk 0:02:42.6]} 42... g5 {[%clk
0:00:55.8]} 43. Kd2 {[%clk 0:02:39.7]} 43... h6 {[%clk 0:00:53.2]} 44. Ke3
{[%clk 0:02:35.6]} 44... Nd7 {[%clk 0:00:51.6]} 45. Kd2 {[%clk 0:02:32.1]} 45...
Kb6 {[%clk 0:00:50.4]} 46. Ke3 {[%clk 0:02:30.5]} 46... Nf8 {[%clk 0:00:49.9]}
47. Kd2 {[%clk 0:02:28.5]} 47... Ne6 {[%clk 0:00:49.4]} 48. Ke3 {[%clk
0:02:27.7]} 48... Nd4 {[%clk 0:00:48.9]} 49. Kf2 {[%clk 0:02:20]} 49... Nc2
{[%clk 0:00:47.6]} 0-1

[Event "Live Chess"]
[Site "Chess.com"]
[Date "2023.05.21"]
[Round "-"]
[White "therealab0ne"]
[Black "manthanit"]
[Result "0-1"]
[WhiteElo "722"]
[BlackElo "1064"]
[TimeControl "300"]
[EndTime "19:27:22 PDT"]
[Termination "manthanit won by resignation"]

1. e4 {[%clk 0:04:51.6]} 1... e6 {[%clk 0:04:59.4]} 2. d4 {[%clk 0:04:49.7]}
2... d5 {[%clk 0:04:59]} 3. e5 {[%clk 0:04:49.3]} 3... c5 {[%clk 0:04:55.4]} 4.
Nf3 {[%clk 0:04:48.5]} 4... cxd4 {[%clk 0:04:53.3]} 5. Nxd4 {[%clk 0:04:47.6]}
5... Nc6 {[%clk 0:04:52.8]} 6. Bb5 {[%clk 0:04:43.4]} 6... Bd7 {[%clk
0:04:51.3]} 7. O-O {[%clk 0:04:41.3]} 7... Nxd4 {[%clk 0:04:50.4]} 8. Bxd7+
{[%clk 0:04:39]} 8... Qxd7 {[%clk 0:04:48.4]} 9. Qxd4 {[%clk 0:04:38.3]} 9... b6
{[%clk 0:04:45.8]} 10. Nc3 {[%clk 0:04:27.6]} 10... Bc5 {[%clk 0:04:44.4]} 11.
Qa4 {[%clk 0:04:20.1]} 11... Qxa4 {[%clk 0:04:40.5]} 12. Nxa4 {[%clk 0:04:19.4]}
12... Bd4 {[%clk 0:04:39]} 13. c3 {[%clk 0:04:04.3]} 13... Bc5 {[%clk
0:04:36.9]} 14. Nxc5 {[%clk 0:04:02.9]} 14... bxc5 {[%clk 0:04:36.4]} 15. b3
{[%clk 0:03:58.2]} 15... Ne7 {[%clk 0:04:35.6]} 16. c4 {[%clk 0:03:55.8]} 16...
dxc4 {[%clk 0:04:32.7]} 17. bxc4 {[%clk 0:03:54.9]} 17... Ng6 {[%clk 0:04:31.8]}
18. Re1 {[%clk 0:03:53.6]} 18... O-O {[%clk 0:04:29.3]} 19. Be3 {[%clk 0:03:50]}
19... Rac8 {[%clk 0:04:27.6]} 20. Rab1 {[%clk 0:03:48.5]} 20... a6 {[%clk
0:04:27.2]} 21. Rb7 {[%clk 0:03:45.7]} 21... Rfe8 {[%clk 0:04:23.1]} 22. Rd1
{[%clk 0:03:36.9]} 22... Ne7 {[%clk 0:04:19.8]} 23. Rdd7 {[%clk 0:03:35.4]}
23... Nf5 {[%clk 0:04:10.6]} 24. Kf1 {[%clk 0:03:24.3]} 24... Rb8 {[%clk
0:04:09.1]} 25. Rbc7 {[%clk 0:03:20.7]} 25... Red8 {[%clk 0:04:06.8]} 26. Rxf7
{[%clk 0:03:19.1]} 26... Rb1+ {[%clk 0:03:59.4]} 27. Ke2 {[%clk 0:03:17.9]}
27... Rb2+ {[%clk 0:03:58.2]} 28. Kf3 {[%clk 0:03:16.5]} 28... Rxa2 {[%clk
0:03:57.2]} 29. g4 {[%clk 0:03:15.4]} 29... Nxe3 {[%clk 0:03:55]} 30. Rxg7+
{[%clk 0:03:14]} 30... Kf8 {[%clk 0:03:52.4]} 31. Rcf7+ {[%clk 0:03:10.7]} 31...
Ke8 {[%clk 0:03:50.9]} 32. Re7+ {[%clk 0:03:07]} 32... Kf8 {[%clk 0:03:48.9]}
33. Rgf7+ {[%clk 0:03:04.6]} 33... Kg8 {[%clk 0:03:47.7]} 34. Rg7+ {[%clk
0:02:51.5]} 34... Kf8 {[%clk 0:03:46.3]} 35. Ref7+ {[%clk 0:02:49.6]} 35... Ke8
{[%clk 0:03:45.1]} 36. Rg8+ {[%clk 0:02:45.9]} 36... Kxf7 {[%clk 0:03:43.3]} 37.
Rxd8 {[%clk 0:02:44.8]} 37... Nxc4 {[%clk 0:03:40.7]} 38. Rd7+ {[%clk
0:02:40.6]} 38... Ke8 {[%clk 0:03:38.2]} 39. Rxh7 {[%clk 0:02:39.4]} 39... Nxe5+
{[%clk 0:03:37.5]} 40. Kf4 {[%clk 0:02:37.7]} 40... Nf7 {[%clk 0:03:29.9]} 41.
g5 {[%clk 0:02:36.5]} 41... Ra4+ {[%clk 0:03:26.3]} 42. Ke3 {[%clk 0:02:31.6]}
42... Nxg5 {[%clk 0:03:21.7]} 43. f4 {[%clk 0:02:29.4]} 43... Nxh7 {[%clk
0:03:19.5]} 0-1

[Event "Live Chess"]
[Site "Chess.com"]
[Date "2023.05.21"]
[Round "-"]
[White "chessfiction"]
[Black "Conradical12"]
[Result "1-0"]
[WhiteElo "2355"]
[BlackElo "1649"]
[TimeControl "300"]
[EndTime "19:27:30 PDT"]
[Termination "chessfiction won by resignation"]

1. e4 {[%clk 0:04:58.3]} 1... e5 {[%clk 0:04:53.9]} 2. d4 {[%clk 0:04:58.2]}
2... exd4 {[%clk 0:04:52.4]} 3. c3 {[%clk 0:04:56.7]} 3... d3 {[%clk 0:04:52.3]}
4. Nf3 {[%clk 0:04:55.7]} 4... Nc6 {[%clk 0:04:52]} 5. c4 {[%clk 0:04:54.8]}
5... d2+ {[%clk 0:04:50.5]} 6. Bxd2 {[%clk 0:04:53.1]} 6... Bc5 {[%clk
0:04:48.2]} 7. Bc3 {[%clk 0:04:52]} 7... Nf6 {[%clk 0:04:45.9]} 8. Nbd2 {[%clk
0:04:50.5]} 8... O-O {[%clk 0:04:44.1]} 9. Bd3 {[%clk 0:04:49.1]} 9... Re8
{[%clk 0:04:42.2]} 10. Qc2 {[%clk 0:04:45.7]} 10... d6 {[%clk 0:04:39.7]} 11.
O-O-O {[%clk 0:04:44.9]} 11... Ng4 {[%clk 0:04:34.2]} 12. e5 {[%clk 0:04:41.1]}
12... Nxf2 {[%clk 0:04:28.2]} 13. Bxh7+ {[%clk 0:04:40.1]} 13... Kf8 {[%clk
0:04:24.6]} 14. Ne4 {[%clk 0:04:40]} 14... Nxd1 {[%clk 0:04:12.1]} 15. Rxd1
{[%clk 0:04:35.5]} 15... Be3+ {[%clk 0:04:09.2]} 16. Kb1 {[%clk 0:04:34.2]}
16... a5 {[%clk 0:03:48.7]} 17. exd6 {[%clk 0:04:31]} 17... cxd6 {[%clk
0:03:46.4]} 18. Rxd6 {[%clk 0:04:28.3]} 18... Qb6 {[%clk 0:03:25.5]} 19. c5
{[%clk 0:04:24.5]} 19... Qb5 {[%clk 0:03:19.8]} 20. Rd3 {[%clk 0:04:11.7]} 20...
Bxc5 {[%clk 0:03:12.2]} 21. Nxc5 {[%clk 0:04:09.7]} 21... Qxc5 {[%clk
0:03:10.9]} 22. Bxg7+ {[%clk 0:04:08.9]} 22... Kxg7 {[%clk 0:03:06.6]} 23. Qxc5
{[%clk 0:04:08.8]} 1-0

[Event "Live Chess"]
[Site "Chess.com"]
[Date "2023.05.21"]
[Round "-"]
[White "ClassyChameleon"]
[Black "raminguy"]
[Result "0-1"]
[WhiteElo "1084"]
[BlackElo "1969"]
[TimeControl "300"]
[EndTime "19:27:55 PDT"]
[Termination "raminguy won by checkmate"]

1. e4 {[%clk 0:04:57.1]} 1... e5 {[%clk 0:04:58.7]} 2. Nf3 {[%clk 0:04:56.1]}
2... Nc6 {[%clk 0:04:58.2]} 3. c3 {[%clk 0:04:54.8]} 3... d5 {[%clk 0:04:56.5]}
4. d4 {[%clk 0:04:51.4]} 4... dxe4 {[%clk 0:04:55.3]} 5. Nfd2 {[%clk 0:04:42.2]}
5... exd4 {[%clk 0:04:53.2]} 6. Nxe4 {[%clk 0:04:41.1]} 6... Qe7 {[%clk
0:04:50.8]} 7. Bd3 {[%clk 0:04:37]} 7... f5 {[%clk 0:04:48.6]} 8. Bg5 {[%clk
0:04:32.5]} 8... Nf6 {[%clk 0:04:46.7]} 9. Bxf6 {[%clk 0:04:29.9]} 9... gxf6
{[%clk 0:04:45.9]} 10. Nd2 {[%clk 0:04:17.1]} 10... fxe4 {[%clk 0:04:44.3]} 11.
Nxe4 {[%clk 0:04:16.1]} 11... f5 {[%clk 0:04:43.3]} 12. O-O {[%clk 0:04:15]}
12... fxe4 {[%clk 0:04:42.2]} 13. Bxe4 {[%clk 0:04:13.6]} 13... Rg8 {[%clk
0:04:15.8]} 14. Re1 {[%clk 0:04:11.8]} 14... Ne5 {[%clk 0:03:56.3]} 15. cxd4
{[%clk 0:04:08.9]} 15... Qg5 {[%clk 0:03:55.6]} 16. dxe5 {[%clk 0:04:03.6]}
16... Bh3 {[%clk 0:03:54]} 17. g3 {[%clk 0:03:14.5]} 17... c6 {[%clk 0:03:45.2]}
18. e6 {[%clk 0:03:06.5]} 18... Rd8 {[%clk 0:03:35.3]} 19. Qf3 {[%clk
0:02:50.6]} 19... Rg7 {[%clk 0:02:43.2]} 20. Bxc6+ {[%clk 0:02:32.2]} 20... Ke7
{[%clk 0:02:01.9]} 21. Bxb7 {[%clk 0:02:18.3]} 21... Qg4 {[%clk 0:01:44.3]} 22.
Qc6 {[%clk 0:01:45.2]} 22... Qd4 {[%clk 0:01:33.5]} 23. Rad1 {[%clk 0:01:33.1]}
23... Qxd1 {[%clk 0:01:30.8]} 24. Qc5+ {[%clk 0:01:04.5]} 24... Kf6 {[%clk
0:01:21.7]} 25. Qe3 {[%clk 0:00:49.9]} 25... Re7 {[%clk 0:00:41.8]} 26. Qe5+
{[%clk 0:00:36.2]} 26... Kg6 {[%clk 0:00:36.7]} 27. Be4+ {[%clk 0:00:28.5]}
27... Kh6 {[%clk 0:00:26.8]} 28. Qf4+ {[%clk 0:00:24.7]} 28... Kg7 {[%clk
0:00:19.1]} 29. Qg5+ {[%clk 0:00:22.1]} 29... Kh8 {[%clk 0:00:15.7]} 30. Qf6+
{[%clk 0:00:15.1]} 30... Bg7 {[%clk 0:00:14.6]} 31. Qxe7 {[%clk 0:00:12.2]}
31... Qxe1# {[%clk 0:00:13]} 0-1

[Event "Live Chess"]
[Site "Chess.com"]
[Date "2023.05.21"]
[Round "-"]
[White "smoggyrabbit"]
[Black "GEMdzq"]
[Result "0-1"]
[WhiteElo "1736"]
[BlackElo "2292"]
[TimeControl "300"]
[EndTime "19:28:13 PDT"]
[Termination "GEMdzq won on time"]

1. d4 {[%clk 0:04:57.9]} 1... Nf6 {[%clk 0:04:59]} 2. Nf3 {[%clk 0:04:56.8]}
2... e6 {[%clk 0:04:58.3]} 3. e3 {[%clk 0:04:55.5]} 3... c5 {[%clk 0:04:57.7]}
4. b3 {[%clk 0:04:53.2]} 4... Nc6 {[%clk 0:04:54.6]} 5. Bd3 {[%clk 0:04:51.1]}
5... d5 {[%clk 0:04:47.1]} 6. Bb2 {[%clk 0:04:49.5]} 6... Bd6 {[%clk 0:04:45.4]}
7. O-O {[%clk 0:04:48.4]} 7... O-O {[%clk 0:04:43]} 8. Nbd2 {[%clk 0:04:46.6]}
8... cxd4 {[%clk 0:04:38.5]} 9. exd4 {[%clk 0:04:45.6]} 9... Qc7 {[%clk
0:04:37.5]} 10. c4 {[%clk 0:04:35.4]} 10... Bd7 {[%clk 0:04:31.7]} 11. Qc2
{[%clk 0:04:08.2]} 11... Nb4 {[%clk 0:04:26]} 12. Qb1 {[%clk 0:04:02.7]} 12...
Rfe8 {[%clk 0:04:17.9]} 13. Ne5 {[%clk 0:03:49]} 13... Bxe5 {[%clk 0:04:14.7]}
14. dxe5 {[%clk 0:03:47.7]} 14... Nxd3 {[%clk 0:04:11.1]} 15. Qxd3 {[%clk
0:03:12.8]} 15... dxc4 {[%clk 0:03:55.2]} 16. Nxc4 {[%clk 0:03:06.5]} 16... Nd5
{[%clk 0:03:52.1]} 17. Nd6 {[%clk 0:02:58.1]} 17... Rf8 {[%clk 0:03:43]} 18.
Rac1 {[%clk 0:02:51.6]} 18... Qd8 {[%clk 0:03:34.5]} 19. Nxb7 {[%clk 0:02:45.9]}
19... Qg5 {[%clk 0:03:32.7]} 20. Qg3 {[%clk 0:02:10.4]} 20... Qd2 {[%clk
0:03:28.4]} 21. Ba3 {[%clk 0:02:07.1]} 21... Nf4 {[%clk 0:03:17.1]} 22. Qe3
{[%clk 0:00:31.3]} 22... Ne2+ {[%clk 0:03:14.7]} 23. Kh1 {[%clk 0:00:28.4]}
23... Qxe3 {[%clk 0:03:13.8]} 24. fxe3 {[%clk 0:00:26]} 24... Nxc1 {[%clk
0:03:11.9]} 25. Bxf8 {[%clk 0:00:24.8]} 25... Nxa2 {[%clk 0:03:04.8]} 26. Bd6
{[%clk 0:00:20]} 26... Nc3 {[%clk 0:02:51.8]} 27. Rc1 {[%clk 0:00:18.3]} 27...
Nb5 {[%clk 0:02:48.4]} 28. Nc5 {[%clk 0:00:15.8]} 28... Bc6 {[%clk 0:02:46]} 29.
Na6 {[%clk 0:00:14]} 29... Bd5 {[%clk 0:02:40.6]} 30. Nc7 {[%clk 0:00:12.5]}
30... Nxc7 {[%clk 0:02:39.6]} 31. Rxc7 {[%clk 0:00:11.1]} 31... Bxb3 {[%clk
0:02:38.5]} 32. h3 {[%clk 0:00:09.8]} 32... Bd5 {[%clk 0:02:37.2]} 33. Rc3
{[%clk 0:00:08.2]} 33... a5 {[%clk 0:02:36.4]} 34. Kg1 {[%clk 0:00:07.6]} 34...
a4 {[%clk 0:02:35.7]} 35. Kf2 {[%clk 0:00:06.9]} 35... f6 {[%clk 0:02:28.8]} 36.
exf6 {[%clk 0:00:05.2]} 36... gxf6 {[%clk 0:02:28.7]} 37. Ke2 {[%clk 0:00:04.3]}
37... Kf7 {[%clk 0:02:28.4]} 38. Kd3 {[%clk 0:00:02.9]} 38... e5 {[%clk
0:02:27.7]} 39. e4 {[%clk 0:00:02]} 39... Ke6 {[%clk 0:02:27.6]} 40. exd5+
{[%clk 0:00:00.7]} 40... Kxd6 {[%clk 0:02:25.4]} 0-1

[Event "Live Chess"]
[Site "Chess.com"]
[Date "2023.05.21"]
[Round "-"]
[White "Conradical12"]
[Black "ViktorTheCoolBoy"]
[Result "0-1"]
[WhiteElo "1649"]
[BlackElo "2495"]
[TimeControl "300"]
[EndTime "19:29:04 PDT"]
[Termination "ViktorTheCoolBoy won by resignation"]

1. e4 {[%clk 0:04:56.4]} 1... d5 {[%clk 0:04:59.3]} 2. exd5 {[%clk 0:04:54.8]}
2... Qxd5 {[%clk 0:04:59.2]} 3. Nc3 {[%clk 0:04:53.4]} 3... Qd6 {[%clk
0:04:57.3]} 4. Nf3 {[%clk 0:04:51.3]} 4... Nf6 {[%clk 0:04:56.1]} 5. Be2 {[%clk
0:04:50]} 5... a6 {[%clk 0:04:54.5]} 6. O-O {[%clk 0:04:49.4]} 6... g6 {[%clk
0:04:54]} 7. g3 {[%clk 0:04:48.2]} 7... Bg7 {[%clk 0:04:53.3]} 8. d3 {[%clk
0:04:46]} 8... O-O {[%clk 0:04:52.6]} 9. Bf4 {[%clk 0:04:45.2]} 9... Qd8 {[%clk
0:04:50.7]} 10. Qd2 {[%clk 0:04:42.6]} 10... Nc6 {[%clk 0:04:47.1]} 11. Bh6
{[%clk 0:04:40.9]} 11... b5 {[%clk 0:04:41.6]} 12. a3 {[%clk 0:04:38.6]} 12...
Bb7 {[%clk 0:04:39.2]} 13. Bxg7 {[%clk 0:04:36.2]} 13... Kxg7 {[%clk 0:04:38]}
14. Rae1 {[%clk 0:04:33]} 14... e6 {[%clk 0:04:35.6]} 15. Ne4 {[%clk 0:04:30.6]}
15... Nxe4 {[%clk 0:04:29.8]} 0-1